Cogmind - Beta 15 @@@ ROGUE MODE // 2025.07.13 @ 05:09:12 Player: Bot Matt Result: Destroyed by L-31 Rogue with Katana Performance ------------- Evolutions (2) 1000 Regions Visited (3) 600 Robots Destroyed (12) 60 Value Destroyed (477) 477 Prototype IDs (2) 40 Alien Tech Used (0) 0 Bonus (200) 200 TOTAL SCORE: 2377 Bonus ------- Pacifist 200 Cogmind --------- Core Integrity 0/550 Matter 273/300 Energy 94/100 System Corruption 0% Temperature Cool (0) Movement Core (350) Ox6 Location -8/Materials Parts ------- > --- POWER (1) -------- (None) > --- PROPULSION (5) --- (None) > --- UTILITY (3) ------ Large Storage Unit > --- WEAPON (2) ------- (None) > --- INVENTORY (15) --- Light Treads Wheel Compact Wheel Peak State ------------ > --- POWER ------------ Light Nuclear Core > --- PROPULSION ------- Aluminum Leg Aluminum Leg Aluminum Leg Aluminum Leg Carbon-fiber Leg > --- UTILITY ---------- Small Storage Unit Large Storage Unit ECM Suite > --- WEAPON ----------- Assault Rifle Light Assault Rifle > --- INVENTORY -------- Improved Ion Engine Light Treads Light Treads Wheel Compact Wheel Small Laser Light Assault Rifle [Rating: 15] Favorites ----------- Power Light Ion Engine Engine Light Ion Engine Power Core Light Nuclear Core Propulsion Aluminum Leg Treads Light Treads Leg Aluminum Leg Utility Small Storage Unit Device ECM Suite Storage Small Storage Unit Weapon Light Assault Rifle Energy Gun Small Laser Ballistic Gun Light Assault Rifle Build | -11 -10 -9 -8 ------- Run | Yrd Mat Mat Mat Slots Evolved 4 | . . 2 2 Power . | . . . . Propulsion 3 | . . 2 1 Utility 1 | . . . 1 Weapon . | . . . . Parts Attached 18 | 7 1 5 5 Power 3 | 1 . 1 1 Engine 2 | 1 . 1 . Core 1 | . . . 1 Reactor . | . . . . Propulsion 7 | 2 . 3 2 Treads 1 | . . . 1 Leg 6 | 2 . 3 1 Wheel . | . . . . Hover . | . . . . Flight . | . . . . Utility 4 | 1 1 1 1 Device 2 | . 1 1 . Storage 2 | 1 . . 1 Processor . | . . . . Hackware . | . . . . Protection . | . . . . Artifact . | . . . . Weapon 4 | 3 . . 1 Energy Gun 1 | . . . 1 Energy Cannon . | . . . . Ballistic Gun 3 | 3 . . . Ballistic Cannon . | . . . . Launcher . | . . . . Special Weapon . | . . . . Impact Weapon . | . . . . Slashing Weapon . | . . . . Piercing Weapon . | . . . . Special Melee Weapon . | . . . . Unidentified Prototypes . | . . . . Parts Lost 13 | . . 1 12 Power 2 | . . . 2 Propulsion 4 | . . . 4 Utility 3 | . . 1 2 Weapon 4 | . . . 4 Highest Loss Streak 12 | . . 1 12 To Critical Strikes . | . . . . Average Backups 6 | 2 6 7 5 Power . | . 1 1 . Propulsion 3 | 1 4 4 3 Utility . | . . . . Weapon 1 | . 1 2 1 Tool/Special . | . . . . Unused Backups 4 | . . 1 3 Power 1 | . . 1 . Propulsion 3 | . . . 3 Utility . | . . . . Weapon . | . . . . Tool/Special . | . . . . Average Slot Usage (%) 78 | . 97 76 72 Engine 8 | . 14 11 2 Leg 24 | . 28 22 25 Device 9 | . 11 9 7 Storage 13 | . 14 11 17 Ballistic Gun 19 | . 28 22 12 Peak Build Rating 15 | 6 7 10 15 Average Rating 7 | 5 6 7 9 On Entrance 5 | . 6 6 10 Naked Turns . | . . . . Heaviest Build 37 | 11 12 17 37 Greatest Support 55 | 20 20 40 55 Greatest Overweight (x) 9 | 1 1 1 9 Average Overweight (x) . | . . . . Largest Inventory Capacity 15 | 8 8 8 15 Average Capacity 10 | 7 8 8 15 Most Carried 8 | 6 7 8 7 Average Carried 6 | 3 6 7 5 Final Capacity 15 | 8 8 8 15 Final Carried 8 | 6 7 8 3 Class Distribution -------------------- 81% | Mutant 18% | Scavenger-Mutant Dominant Class ---------------- Mutant | -10/Materials Mutant | -9/Materials Mutant | -8/Materials Resources | -11 -10 -9 -8 ----------- Run | Yrd Mat Mat Mat Matter Collected 527 | 177 . 240 110 Remotely 34 | . . 34 . Salvage Created 533 | . . 260 273 Parts 29 | . . 17 12 Haulers Intercepted . | . . . . Recyclers Shooed . | . . . . Parts Field Recycled . | . . . . Retrieved Matter . | . . . . Parts Self-Destructed . | . . . . Prevented . | . . . . Kills | -11 -10 -9 -8 ------- Run | Yrd Mat Mat Mat Combat Hostiles Destroyed 11 | . . 6 5 Guns 11 | . . 6 5 Classes Destroyed 4 | . . 3 1 Operator 1 | . . . 1 Grunt 8 | . . 4 4 Duelist 1 | . . 1 . Sentry 2 | . . 1 1 Best Kill Streak 3 | . . 3 3 Combat Bots Only 3 | . . 3 3 Max Kills in Single Turn 1 | . . 1 1 Gunslinging . | . . . . Exploded . | . . . . Melee . | . . . . Uniques/NPCs Destroyed . | . . . . Combat | -11 -10 -9 -8 -------- Run | Yrd Mat Mat Mat Hostile Shots Fired 114 | . . 27 87 Missed 29 | . . 9 20 Hits 85 | . . 18 67 Melee 36 | . . 1 35 Projectile 49 | . . 17 32 Critical Strikes 10 | . . 1 9 Damage Taken 1878 | . . 273 1605 Core 617 | . . 67 550 Absorbed by Shields . | . . . . Core Remaining (%) 94 | 100 100 83 . Volleys Fired 84 | . . 26 58 Largest 2 | . . 2 2 Hottest 40 | . . 40 40 Shots Fired 137 | . . 52 85 Gun 137 | . . 52 85 Cannon . | . . . . Launcher . | . . . . Special . | . . . . Kinetic 117 | . . 52 65 Thermal 20 | . . . 20 Explosive . | . . . . Electromagnetic . | . . . . Robot Hit Streak 15 | . . 6 15 Robot Miss Streak 3 | . . 3 2 Penetration Max . | . . . . Secondary Targets 1 | . . 1 . Max Gunslinging Chain 1 | . . 1 . Shots Hit Robots 102 | . . 33 69 Core Hits 38 | . . 16 22 Critical Kills 1 | . . 1 . Critical Parts Destroyed 3 | . . 1 2 Critical Strikes 4 | . . 2 2 Destroy 4 | . . 2 2 Melee Attacks . | . . . . Impact . | . . . . Slashing . | . . . . Piercing . | . . . . Sneak Attacks . | . . . . Combat Hostiles . | . . . . Follow-up Attacks . | . . . . Damage Inflicted 1043 | . . 326 717 Guns 1043 | . . 326 717 Cannons . | . . . . Explosions . | . . . . Melee . | . . . . Ramming . | . . . . Kinetic 857 | . . 326 531 Thermal 186 | . . . 186 Explosive . | . . . . Electromagnetic . | . . . . Impact . | . . . . Slashing . | . . . . Piercing . | . . . . Highest Corruption . | . . . . Average Corruption . | . . . . Corruption Purged . | . . . . Corruption Blocked . | . . . . Overload Shots . | . . . . Overflow Damage . | . . . . Projectiles . | . . . . Explosions . | . . . . Melee . | . . . . Knockbacks . | . . . . Impact . | . . . . Kinetic . | . . . . Secondary . | . . . . Self-Inflicted Damage . | . . . . Shots . | . . . . Rammed 4 | . . . 4 Targets Rammed 4 | . . . 4 Kicked . | . . . . Crushed . | . . . . Highest Temperature 25 | . . 25 23 Average Temperature 7 | . . 5 7 Received Heat Transfer 450 | . . 117 333 Siege Activations . | . . . . Martial Activations . | . . . . Shielding Activations . | . . . . Robots Disrupted . | . . . . Combat Hostiles . | . . . . Robots Corrupted . | . . . . Combat Hostiles . | . . . . Parts Fried . | . . . . Impact Corruptions . | . . . . Robots Melted . | . . . . Combat Hostiles . | . . . . Parts Melted . | . . . . Heat Transferred 425 | . . . 425 Parts Sabotaged . | . . . . Parts Stolen . | . . . . Parts Stripped . | . . . . Power Chain Reactions . | . . . . Alert | -11 -10 -9 -8 ------- Run | Yrd Mat Mat Mat Maximum Alert Level . | . . . . Low Security (%) 100 | 100 100 100 100 Level 1 . | . . . . Level 2 . | . . . . Level 3 . | . . . . Level 4 . | . . . . Level 5 . | . . . . High Security . | . . . . Max Security . | . . . . Peak Influence 80 | . 15 80 60 Initial 20 | . . 1 20 Average 16 | . 1 24 15 Influence Increases 294 | . 15 154 125 Destroy 0b10 Robot/C 220 | . . 120 100 Destroy 0b10 Robot/NC 5 | . . . 5 Destroy Leader 50 | . . 30 20 Successful Hack 4 | . . 4 . Lose Combat Pursuer 15 | . 15 . . Influence Decreases 294 | . 10 109 175 Entered New Map 34 | . . 4 30 Time Decay 180 | . 10 95 75 Lost Part 80 | . . 10 70 Squads Dispatched 2 | . . 1 1 Investigation 1 | . . 1 . Extermination . | . . . . Reinforcement 1 | . . . 1 Assault . | . . . . Garrison . | . . . . Intercept . | . . . . Searches Triggered . | . . . . Construction Impeded . | . . . . Haulers Reinforced . | . . . . Active Scanning Responses . | . . . . Cargo Convoy Interrupts . | . . . . Stealth | -11 -10 -9 -8 --------- Run | Yrd Mat Mat Mat Distress Signals 3 | . 1 2 . Communications Jammed . | . . . . Distress Signals . | . . . . Times Spotted 24 | . 3 11 10 Peak Tracking Total 5 | . 3 5 4 Tactical Retreats 4 | . 1 2 1 Traps | -11 -10 -9 -8 ------- Run | Yrd Mat Mat Mat Traps Triggered 2 | . 1 1 . Indirectly . | . . . . Trap Hack Attempts . | . . . . Triggered . | . . . . Disarmed . | . . . . Reprogrammed . | . . . . Reused . | . . . . Traps Extracted . | . . . . Installed . | . . . . Triggered . | . . . . Machines | -11 -10 -9 -8 ---------- Run | Yrd Mat Mat Mat Machines Disabled . | . . . . Max in Single Turn . | . . . . Machines Repaired . | . . . . Machines Dismantled . | . . . . Machines Sabotaged . | . . . . Overloaded Fab Kills . | . . . . Hacking | -11 -10 -9 -8 --------- Run | Yrd Mat Mat Mat Machines Accessed 5 | . 1 4 . Terminals 4 | . 1 3 . Fabricators . | . . . . Repair Stations . | . . . . Recycling Units 1 | . . 1 . Scanalyzers . | . . . . Garrison Access . | . . . . Total Hacks 13 | . 1 12 . Successful 6 | . 1 5 . Failed 7 | . . 7 . Catastrophic 2 | . . 2 . Database Lockouts . | . . . . Manual . | . . . . Terminals 8 | . 1 7 . Fabricators . | . . . . Repair Stations . | . . . . Recycling Units 5 | . . 5 . Scanalyzers . | . . . . Garrison Access . | . . . . Terminal Hacks 3 | . 1 2 . Prototype ID Bank 1 | . . 1 . Locate Traps 1 | . . 1 . Zone Layout 1 | . 1 . . Fabricator Hacks . | . . . . Repair Station Hacks . | . . . . Recycling Unit Hacks 3 | . . 3 . Process 1 | . . 1 . Report Inventory 1 | . . 1 . Retrieve Matter 1 | . . 1 . Scanalyzer . | . . . . Garrison Access Hacks . | . . . . Unauthorized Hacks . | . . . . Terminals . | . . . . Fabricators . | . . . . Repair Stations . | . . . . Recycling Units . | . . . . Scanalyzers . | . . . . Garrison Access . | . . . . Data Cores Recovered . | . . . . Used . | . . . . Hacking Detections 4 | . . 4 . Full Trace Events 1 | . . 1 . Feedback Events . | . . . . Feedback Blocked . | . . . . Robot Schematics Acquired . | . . . . Robots Built . | . . . . Authchips . | . . . . Time . | . . . . Total Robot Build Rating . | . . . . Part Schematics Acquired . | . . . . Parts Built . | . . . . Authchips . | . . . . Time . | . . . . Total Part Build Rating . | . . . . Parts Repaired . | . . . . Time . | . . . . Parts Recycled . | . . . . Recycled Matter 75 | . . 75 . Retrieved Matter 75 | . . 75 . Retrieved Components . | . . . . Parts Scanalyzed . | . . . . Part Schematics Acquired . | . . . . Parts Damaged . | . . . . Bothacking | -11 -10 -9 -8 ------------ Run | Yrd Mat Mat Mat Used RIF Installer . | . . . . Robots Hacked . | . . . . Non-combat . | . . . . Combat . | . . . . Robot Hacks Applied . | . . . . Relay Couplers Released . | . . . . Fabnet Peak Effective % . | . . . . Robots Rewired . | . . . . Allies Hacked . | . . . . Hacks Repelled . | . . . . Allies | -11 -10 -9 -8 -------- Run | Yrd Mat Mat Mat Total Allies . | . . . . Largest Group . | . . . . Highest-Rated Group . | . . . . Highest-Rated Ally . | . . . . Total Orders . | . . . . Ally Attacks . | . . . . Total Damage . | . . . . Kills . | . . . . Allies Corrupted . | . . . . Allies Melted . | . . . . Intel | -11 -10 -9 -8 ------- Run | Yrd Mat Mat Mat Active Infowar (turns) 317 | . . 130 187 ECM 317 | . . 130 187 Robot Analysis Total . | . . . . Derelict Logs Recovered . | . . . . Drone Launches . | . . . . Drone Recoveries . | . . . . Exploration | -11 -10 -9 -8 ------------- Run | Yrd Mat Mat Mat Turns Passed 808 | 84 110 364 250 Spaces Moved 393 | 60 90 178 65 Core 9 | 6 . . 3 Treads . | . . . . Legs 384 | 54 90 178 62 Wheels . | . . . . Hover . | . . . . Flight . | . . . . Fastest Speed 50 | 50 120 120 120 Average Speed 139 | 113 120 158 132 Slowest Speed 500 | 120 190 190 500 Overloaded Moves . | . . . . Propulsion Burnouts . | . . . . Robots Hopped . | . . . . Potential Cave-ins . | . . . . Cave-ins Triggered . | . . . . Exploration Rate (%) 15 | 4 28 23 7 Regions Visited 3 Branch Regions . Pre-discovered Areas . | . . . . Known Exits Taken . | . . . . Unknown Exits Taken 3 | 1 1 1 . Scrap Searched . | . . . . Spaces Dug . | . . . . Terrain Destroyed . | . . . . Melee . | . . . . Projectile . | . . . . AOE . | . . . . Terrain Rammed . | . . . . Walls Destroyed . | . . . . Machines Disabled . | . . . . Actions | -11 -10 -9 -8 --------- Run | Yrd Mat Mat Mat Total 516 | 73 92 211 140 Wait 2 | . . . 2 Move 390 | 59 89 177 65 Hop . | . . . . Pick Up 13 | 7 2 2 2 Fast Attach 9 | 4 . 4 1 Attach 9 | 2 1 . 6 Detach . | . . . . Swap 3 | 1 . 1 1 Drop 2 | . . 1 1 Fire 84 | . . 26 58 Melee . | . . . . Ram 4 | . . . 4 Kick . | . . . . Crush . | . . . . Escape Stasis . | . . . . Rewire . | . . . . Trap . | . . . . Miscellaneous . | . . . . Route ------- -11/Scrapyard -10/Materials -9/Materials -8/Materials History --------- Turn | Location | Event 17 | -11/Scrapyard | Discovered new exit (range 16) 85 | -11/Scrapyard | Entered Materials 181 | -10/Materials | Discovered new exit (range 10) 195 | -10/Materials | Entered another Materials area 195 | -9/Materials | Evolved 2 slots: Propulsion x2 303 | -9/Materials | Build established: Mutant 543 | -9/Materials | Discovered new exit (range 5) 559 | -9/Materials | Entered another Materials area 559 | -8/Materials | Evolved 2 slots: Propulsion x1, Utility x1 742 | -8/Materials | Core integrity fell below 50% 796 | -8/Materials | Core integrity fell below 20% 809 | -8/Materials | Destroyed by L-31 Rogue with Katana Last Messages --------------- 00709_ Aluminum Leg destroyed. 00709_ Lgt. Nuclear Core destroyed. 00709_ Aluminum Leg destroyed. 00711_ G-47 Trooper destroyed. 00714_ Aluminum Leg destroyed. 00721_ Assault Rifle destroyed. 00724_ G-47 Trooper destroyed. 00736_ Lgt. Assault Rifle destroyed. 00738_ R-06 Scavenger collects Imp. Heat Sink. 00762_ Imp. Ion Engine destroyed. 00775_ Lgt. Treads severed. 00777_ ECM Suite destroyed. 00785_ Sml. Laser severed. 00786_ Slammed into L-31 Rogue. 00790_ Sml. Storage Unit destroyed. 00791_ Slammed into L-31 Rogue. 00794_ Destabilizing: Core damaged (-5). 00798_ Slammed into L-31 Rogue. 00805_ Acquired Sml. Laser. 00806_ Sml. Laser destroyed. Map ----- +----------------------------------------------------+ | ???????????????# # # # | | ???????????????# """ # # # | | ???????????????# """ + + # | | ???????????????# """ # # # | | ???????????????# # # # | | ???????????????# ?# # # | | ???????????????######?# ####### | | ??????????????????????# #?????? | | ??????????????????????# #?????? | | ??????????????????????+ #?????? | | ??????????????????????# = #?????? | | ??????????????????????# *#?????? | | ??????????????????????# ####### | | ??????????????????????# # ! # | | ??????????????????????# # # | | ??????????????????????# # # | | ??????????????????????# + ! # | | ??????????????? # # | | ??????????? # * # | | ???????????? # # | | ????????????#######+#########+### | | ?????????????# ! [## #?? | | ?????????????? t// %## #?? | | ???????????????""" / """[!# #?? | | ???????????????""" """%## #?? | | ?????????????# """ ""@m##%#?? | | ?????????????# l[+%=#?? | | ???????????????###+######/#####?? | | ??????????????????????? [#?????? | | ??????????????????????### #?????? | | ????????????????????????#^#?????? | | ????????????????????????#+#?????? | | ????????????????????????????????? | | ????????????????????????????????? | | ????????????????????????????????? | | ????????????????????????????????? | | ????????????????????????????????? | | ????????????????????????????????? | | ????????????????????????????????? | | ????????????????????????????????? | | ????????????????????????????????? | | ????????????????????????????????? | | ????????????????????????????????? | | ????????????????????????????????? | | ????????????????????????????????? | | ????????????????????????????????? | | ????????????????????????????????? | | ????????????????????????????????? | | ????????????????????????????????? | | ????????????????????????????????? | +----------------------------------------------------+ Best States ------------- Heat Dissipation 31 Energy Generation 14 Energy Capacity 265 Matter Stores 300 Matter Capacity 300 Sight Range 16 Terrain Scan Density 10 ECM Strength 1 Evasion (%) 55 Item Schematics ----------------- None Robot Schematics ------------------ None Fabricated ------------ Nothing Repaired ---------- Nothing Alien Tech Used ----------------- None Achievements -------------- None Challenges ------------ None Game ------ Seed SpreadSlugScythe Manual? 0 Play Time 00:10:08 Cumulative 5.3 hours Start 2025.07.13 @ 04:59:51 End 2025.07.13 @ 05:09:12 Sessions 1 Manual Loads 0 Difficulty Rogue Special Mode None Game No. 12 Rogue 12 Adventurer 0 Explorer 0 Win Type - Total 0 Types 0/0/0/0/0/0/0/0/0/0 Lore% 2 Gallery% 8 Achievement% 8 Wizard Run 0 Options --------- Layout 2 ASCII 0 Keyboard 1 Movement Vi Keybinds 0 Fullscreen 1 Font 32/SmallcapsGlow Map View 50x44 Zoom Use 0% Tactical HUD 1 Map Filters NONE Filters NONE Steam 1 RUN: bb0c7266-1e04-48c7-b8ed-3b8002c3eab0